fUSD/lending_fUSD_20240724
["ID","MTS","AMOUNT","RATE_DAILY","PERIOD"]
[333072082,1721829041523,-500.0,0.00010999,2]
[333072083,1721829041533,-500.0,0.00010999,2]
[333072084,1721829041541,-500.0,0.00010999,2]
[333072085,1721829041550,-500.0,0.00010999,2]
[333072086,1721829041560,-287.52,0.00010999,2]
[333072087,1721829041569,-500.0,0.00010999,2]
[333072088,1721829041578,-500.0,0.00010999,2]
[333072089,1721829041587,-500.0,0.00010999,2]
[333072090,1721829041596,-500.0,0.00010999,2]
[333072091,1721829041606,-500.0,0.00010999,2]
[333072092,1721829041615,-500.0,0.00010999,2]
[333072093,1721829041625,-500.0,0.00010999,2]
[333072094,1721829041635,-500.0,0.00010999,2]
[333072095,1721829041644,-224.84,0.00010999,2]
[333072096,1721829041653,-500.0,0.00010999,2]
[333072097,1721829041662,-500.0,0.00010999,2]
[333072098,1721829041672,-500.0,0.00010999,2]
[333072099,1721829041681,-500.0,0.00010999,2]
[333072100,1721829041691,-500.0,0.00010999,2]
[333072101,1721829041700,-500.0,0.00010999,2]
[333072102,1721829041709,-500.0,0.00010999,2]
[333072103,1721829041718,-500.0,0.00010999,2]
[333072104,1721829041728,-500.0,0.00010999,2]
[333072105,1721829041737,-500.0,0.00010999,2]
[333072106,1721829041746,-500.0,0.00010999,2]
[333072107,1721829041755,-500.0,0.00010999,2]
[333072108,1721829041765,-511.41498367,0.00010999,2]
[333072109,1721829041774,-500.0,0.00010999,2]
[333072110,1721829041783,-500.0,0.00010999,2]
[333072111,1721829041793,-208.0,0.00010999,2]
[333072112,1721829041802,-500.0,0.00010999,2]
[333072113,1721829041811,-500.0,0.00010999,2]
[333072114,1721829041821,-500.0,0.00010999,2]
[333072115,1721829041830,-500.0,0.00010999,2]
[333072116,1721829041839,-500.0,0.00010999,2]
[333072117,1721829041848,-500.0,0.00010999,2]
[333072118,1721829041857,-500.0,0.00010999,2]
[333072119,1721829041866,-500.0,0.00010999,2]
[333072120,1721829041875,-500.0,0.00010999,2]
[333072121,1721829041890,-500.0,0.00010999,2]
[333072122,1721829041899,-500.0,0.00010999,2]
[333072123,1721829041913,-462.41071715,0.00010999,2]
[333072124,1721829041922,-500.0,0.00010999,2]
[333072125,1721829041933,-500.0,0.00010999,2]
[333072126,1721829041942,-500.0,0.00010999,2]
[333072127,1721829041952,-190.80957417,0.00010999,2]
[333072128,1721829041962,-500.0,0.00010999,2]
[333072129,1721829041971,-244.68094262,0.00010999,2]
[333072130,1721829041982,-500.0,0.00010999,2]
[333072131,1721829041992,-210.83,0.00010999,2]
[333072132,1721829042002,-500.0,0.00010999,2]
[333072133,1721829042012,-500.0,0.00010999,2]
[333072134,1721829042021,-500.0,0.00010999,2]
[333072135,1721829042030,-500.0,0.00010999,2]
[333072136,1721829042039,-433.96859834,0.00010999,2]
[333072137,1721829042048,-500.0,0.00010999,2]
[333072138,1721829042058,-500.0,0.00010999,2]
[333072139,1721829042067,-500.0,0.00010999,2]
[333072140,1721829042076,-500.0,0.00010999,2]
[333072141,1721829042086,-273.65526336,0.00010999,2]
[333072142,1721829042096,-500.0,0.00010999,2]
[333072143,1721829042107,-175.83835015,0.00010999,2]
[333072144,1721829042116,-153.09108104,0.00010999,2]
[333072145,1721829042126,-500.0,0.00010999,2]
[333072146,1721829042135,-500.0,0.00010999,2]
[333072147,1721829042144,-500.0,0.00010999,2]
[333072148,1721829042153,-500.0,0.00010999,2]
[333072149,1721829042163,-512.9864842,0.00010999,2]
[333072150,1721829042173,-500.0,0.00010999,2]
[333072151,1721829042182,-441.45111066,0.00010999,2]
[333072152,1721829042191,-500.0,0.00010999,2]
[333072153,1721829042201,-500.0,0.00010999,2]
[333072154,1721829042210,-500.0,0.00010999,2]
[333072155,1721829042219,-240.41,0.00010999,2]
[333072156,1721829042228,-500.0,0.00010999,2]
[333072157,1721829042237,-500.0,0.00010999,2]
[333072158,1721829042247,-500.0,0.00010999,2]
[333072159,1721829042256,-305.92850478,0.00010999,2]
[333072160,1721829042266,-500.0,0.00010999,2]
[333072161,1721829042275,-500.0,0.00010999,2]
[333072162,1721829042285,-500.0,0.00010999,2]
[333072163,1721829042295,-500.0,0.00010999,2]
[333072164,1721829042305,-370.28588909,0.00010999,2]
[333072165,1721829042314,-500.0,0.00010999,2]
[333072166,1721829042323,-500.0,0.00010999,2]
[333072167,1721829042333,-500.0,0.00010999,2]
[333072168,1721829042343,-161.46219643,0.00010999,2]
[333072169,1721829042352,-500.0,0.00010999,2]
[333072170,1721829042362,-500.0,0.00010999,2]
[333072171,1721829042371,-602.1321459,0.00010999,2]
[333072172,1721829042383,-500.0,0.00010999,2]
[333072173,1721829042394,-500.0,0.00010999,2]
[333072174,1721829042409,-500.0,0.00010999,2]
[333072175,1721829042418,-500.0,0.00010999,2]
[333072176,1721829042427,-500.0,0.00010999,2]
[333072177,1721829042436,-611.9596,0.00010999,2]
[333072178,1721829042445,-500.0,0.00010999,2]
[333072179,1721829042454,-500.0,0.00010999,2]
[333072180,1721829042463,-500.0,0.00010999,2]
[333072181,1721829042472,-500.0,0.00010999,2]
[333072182,1721829042482,-327.93430356,0.00010999,2]
[333072183,1721829042492,-500.0,0.00010999,2]
[333072184,1721829042501,-500.0,0.00010999,2]
[333072185,1721829042511,-500.0,0.00010999,2]
[333072186,1721829042522,-500.0,0.00010999,2]
[333072187,1721829042532,-295.96,0.00010999,2]
[333072188,1721829042542,-500.0,0.00010999,2]
[333072189,1721829042551,-500.0,0.00010999,2]
[333072190,1721829042560,-500.0,0.00010999,2]
[333072191,1721829042570,-500.0,0.00010999,2]
[333072192,1721829042580,-500.0,0.00010999,2]
[333072193,1721829042590,-500.0,0.00010999,2]
[333072194,1721829042600,-500.0,0.00010999,2]
[333072195,1721829042609,-500.0,0.00010999,2]
[333072196,1721829042619,-500.0,0.00010999,2]
[333072197,1721829042628,-500.0,0.00010999,2]
[333072198,1721829042652,-554.0401666,0.00010999,2]
[333072199,1721829042662,-500.0,0.00010999,2]
[333072200,1721829042671,-500.0,0.00010999,2]
[333072201,1721829042681,-500.0,0.00010999,2]
[333072202,1721829042690,-500.0,0.00010999,2]
[333072203,1721829042699,-470.76,0.00010999,2]
[333072204,1721829042709,-500.0,0.00010999,2]
[333072205,1721829042718,-500.0,0.00010999,2]
[333072206,1721829042728,-500.0,0.00010999,2]
[333072207,1721829042737,-500.0,0.00010999,2]
[333072208,1721829042746,-287.82781228,0.00010999,2]
[333072209,1721829042756,-150.0,0.00010999,2]
[333072210,1721829042765,-150.0,0.00010999,7]
[333072211,1721829042774,-2228803.15619639,0.00011,2]
[333072212,1721829042789,-405174.45906779,0.00011,2]
[333072213,1721829042808,-16719.03507,0.00011,2]
[333072214,1721829042824,-2348.28670198,0.00011,2]
[333072215,1721829042836,-2854.23141541,0.00011,2]
[333072228,1721829043184,-1329.54172578,0.00011,2]
[333072231,1721829043208,-334.58,0.00011,2]
[333072240,1721829043386,-53638.468467,0.00011,2]
[333072242,1721829043397,-1732.8790104,0.00011,2]
[333072244,1721829043409,-602829.00000039,0.00011,2]
[333072250,1721829043561,-228262.60492093,0.00011,2]
[333072251,1721829043572,-11878.08587,0.00011,2]
[333072256,1721829046226,-1488.3590197,0.00011,2]
[333072257,1721829046238,-1434.79165165,0.00011,2]
[333072258,1721829046249,-251.832872,0.00011,2]
[333072259,1721829046260,-6777.2,0.00011,2]
[333072260,1721829046271,-4653.66294273,0.00011,2]
[333072261,1721829046282,-5487.76202675,0.00011,2]
[333072262,1721829046459,-3082.7150898,0.0001085,2]
[333072263,1721829046471,-522.88362862,0.0001085,2]
[333072264,1721829046975,-1119.533309,0.0001085,2]
[333072265,1721829046987,-2824.64846527,0.0001085,2]
[333072267,1721829391166,237.73,8.219e-05,2]
[333072268,1721829480593,2294.75432452,8.219e-05,2]
[333072688,1721830232470,-667.36237526,9.193e-05,2]
[333072689,1721830232481,-54.67762474,9.193e-05,2]
[333072690,1721830232491,-719.41,9.258e-05,2]
[333072691,1721830232500,-263.75,9.322e-05,2]
[333072692,1721830232509,-360.0,9.322e-05,2]
[333072693,1721830232518,-250.0,9.342e-05,2]
[333072694,1721830232527,-200.0,9.363e-05,2]
[333072695,1721830232537,-300.0,9.45e-05,2]
[333072696,1721830232546,-23900.0,9.451e-05,2]
[333072697,1721830232555,-10000.0,9.471e-05,2]
[333072698,1721830232565,-245.94,9.478e-05,2]
[333072699,1721830232574,-302.87483183,9.5e-05,2]
[333072700,1721830232588,-195.9,9.5e-05,2]
[333072701,1721830232597,-213.67793098,9.516e-05,2]
[333072702,1721830232609,-438.28,9.519e-05,2]
[333072703,1721830232619,-640.0,9.529e-05,2]
[333072704,1721830232629,-1026.66982016,9.668e-05,2]
[333072705,1721830232638,-150.0,9.669e-05,2]
[333072706,1721830232647,-150.99,9.67e-05,2]
[333072707,1721830232656,-150.99,9.67e-05,2]
[333072708,1721830232665,-4290.71,9.67e-05,2]
[333072709,1721830232675,-999.99,9.67e-05,2]
[333072710,1721830232684,-588.43,9.67e-05,2]
[333072711,1721830232694,-499.99,9.67e-05,2]
[333072712,1721830232703,-10090.967,9.932e-05,2]
[333072713,1721830232712,-155.1368063,9.962e-05,2]
[333072714,1721830232722,-654.33643416,0.0001,2]
[333072715,1721830232731,-2019.03,0.0001,2]
[333072716,1721830232740,-270.7,0.0001,2]
[333072717,1721830232749,-310.78,0.0001,2]
[333072718,1721830232759,-1801.86,0.0001,2]
[333072719,1721830232768,-500.0,0.0001,2]
[333072720,1721830232777,-500.0,0.000101,2]
[333072721,1721830232787,-150.4,0.0001011,2]
[333072722,1721830232796,-150.4,0.00010113,2]
[333072723,1721830232805,-1000.0,0.00010116,2]
[333072724,1721830232814,-150.4,0.00010117,2]
[333072725,1721830232824,-150.4,0.0001012,2]
[333072726,1721830232835,-150.4,0.00010123,2]
[333072727,1721830232844,-150.4,0.00010127,2]
[333072728,1721830232853,-150.4,0.0001013,2]
[333072729,1721830232863,-150.4,0.00010133,2]
[333072730,1721830232873,-150.4,0.00010137,2]
[333072731,1721830232882,-150.4,0.0001014,2]
[333072732,1721830232891,-150.4,0.00010144,2]
[333072733,1721830232901,-150.4,0.00010147,2]
[333072734,1721830232910,-786.213,0.00010147,2]
[333072735,1721830232920,-150.4,0.0001015,2]
[333072736,1721830232929,-150.4,0.00010154,2]
[333072737,1721830232939,-150.4,0.00010157,2]
[333072738,1721830232948,-150.4,0.0001016,2]
[333072739,1721830232959,-500.0,0.000102,2]
[333072740,1721830232970,-500.0,0.000103,2]
[333072741,1721830232979,-420.0,0.00010395,2]
[333072742,1721830232988,-500.0,0.000104,2]
[333072743,1721830232998,-151.277,0.00010427,2]
[333072744,1721830233007,-151.9997079,0.00010431,2]
[333072745,1721830233016,-1667.42,0.00010441,2]
[333072746,1721830233026,-237.73,0.00010452,2]
[333072747,1721830233035,-360.0,0.00010487,2]
[333072748,1721830233045,-500.0,0.000105,2]
[333072749,1721830233054,-255.0,0.00010635,2]
[333072750,1721830233064,-158.92020321,0.0001065,2]
[333072751,1721830233074,-640.0,0.0001072,2]
[333072752,1721830233085,-224.9099,0.0001075,2]
[333072753,1721830233095,-32353.06,0.0001075,2]
[333072754,1721830233105,-2622.9738,0.0001075,2]
[333072755,1721830233115,-458.0,0.00010781,2]
[333072756,1721830233124,-16803.83969669,0.000108,2]
[333072757,1721830233169,-1092.29725093,0.000108,2]
[333072758,1721830233181,-643.35469944,0.000108,2]
[333072759,1721830233192,-807.0070867,0.000108,2]
[333072760,1721830233946,-508.47198714,0.000108,2]
[333072761,1721830233958,-23626.18350725,0.000108,2]
[333072762,1721830233969,-500.0,0.000108,2]
[333072763,1721830233978,-8334.6724,0.000108,2]
[333072764,1721830233988,-1000.0,0.000108,2]
[333072765,1721830233998,-31677.15570731,0.0001085,2]
[333072766,1721830234008,-15646.0773,0.0001085,2]
[333072767,1721830234017,-52536.41108544,0.000109,2]
[333072768,1721830234028,-333.17,0.000109,2]
[333072769,1721830234106,-27130.41891456,0.000109,2]
[333072770,1721830234117,-3692.8391,0.000109,2]
[333072771,1721830234127,-502.09744114,0.000109,2]
[333072772,1721830234136,-502.09744114,0.000109,2]
[333072773,1721830234146,-178.54830156,0.000109,2]
[333072774,1721830234155,-158.78327468,0.000109,2]
[333072775,1721830234164,-1224.0,0.000109,2]
[333072776,1721830234174,-237.49,0.00010904,3]
[333072777,1721830234183,-500.0,0.00010912,2]
[333072778,1721830234194,-500.0,0.00010958,2]
[333072779,1721830234204,-500.0,0.00010958,2]
[333072780,1721830234213,-414.01891517,0.00010958,2]
[333072781,1721830234223,-500.0,0.00010958,2]
[333072782,1721830234232,-500.0,0.00010958,2]
[333072783,1721830234242,-563.62212316,0.00010958,2]
[333072784,1721830234252,-189.60211753,0.00010958,2]
[333072785,1721830234267,-200.0,0.00010959,2]
[333072786,1721830234277,-151.277,0.00010974,2]
[333072787,1721830234287,-570.61779689,0.00010994,2]
[333072788,1721830234296,-3631.19182575,0.00010995,2]
[333072789,1721830234307,-500.0,0.00010997,2]
[333072790,1721830234316,-500.0,0.00010997,2]
[333072791,1721830234325,-883.36844987,0.00010999,2]
[333072792,1721830234337,-500.0,0.00010999,2]
[333072793,1721830234347,-208.14,0.00010999,2]
[333072794,1721830234356,-500.0,0.00010999,2]
[333072795,1721830234366,-500.0,0.00010999,2]
[333072796,1721830234375,-500.0,0.00010999,2]
[333072797,1721830234385,-473.93631657,0.00010999,2]
[333072798,1721830234394,-500.0,0.00010999,2]
[333072799,1721830234404,-500.0,0.00010999,2]
[333072800,1721830234413,-500.0,0.00010999,2]
[333072801,1721830234423,-500.0,0.00010999,2]
[333072802,1721830234432,-500.0,0.00010999,2]
[333072803,1721830234442,-444.9,0.00010999,2]
[333072804,1721830234451,-500.0,0.00010999,2]
[333072805,1721830234460,-500.0,0.00010999,2]
[333072806,1721830234469,-500.0,0.00010999,2]
[333072807,1721830234479,-494.40795814,0.00010999,2]
[333072808,1721830234488,-696648.64302384,0.00011,2]
[333072809,1721830234500,-8216.77537817,0.00011,2]
[333072814,1721830238940,-279.36,0.0001075,2]
[333072815,1721830239100,-16806.08406241,0.0001075,2]
[333072816,1721830239111,-266.94615784,0.0001075,2]
[333072826,1721830240411,-350.41314,0.0001075,2]
[333072827,1721830240424,-10075.18833414,0.0001075,2]
[333072828,1721830240436,-269.13000007,0.0001075,2]
[333072829,1721830240550,-3507.86100252,0.0001075,2]
[333072864,1721830243619,-41769.42150302,0.0001075,2]
[333072865,1721830243629,-633474.68429687,0.00011,2]
[333072866,1721830243827,-3004.19542676,0.00011,2]
[333072868,1721830246489,-176.00650008,9.962e-05,2]
[333072869,1721830246498,-333.66,0.00010345,2]
[333072870,1721830246508,-5053.08357192,0.00011,2]
[333072871,1721830246519,-2062.13142447,0.00011,2]
[333072872,1721830246532,-776.31930374,0.00011,2]
[333072873,1721830246543,-731.34227642,0.00011,2]
[333072874,1721830246555,-13585.1608,0.00011,2]
[333072875,1721830246566,-870.66039763,0.00011,2]
[333072876,1721830246581,-600.88571428,0.00011,2]
[333072877,1721830248538,-922.26269289,0.0001078,2]
[333072878,1721830248551,-179.33511053,0.0001078,2]
[333072879,1721830248562,-252.94142314,0.00010999,2]
[333072882,1721830390662,248.25,8.219e-05,2]
[333072883,1721830903588,148976.0,8.219e-05,2]
[333072884,1721830903614,0.12095805,8.219e-05,2]
[333072885,1721830927062,235.83,8.219e-05,2]
[333072886,1721831045560,1369.53237316,8.219e-05,2]
[333072887,1721831054233,1665.00828159,8.219e-05,2]
[333072888,1721831064010,871.0952208,8.219e-05,2]
[333072890,1721831073037,1627.74760138,8.219e-05,2]
[333072895,1721831094306,871.0952208,8.219e-05,2]
[333072897,1721831096990,411.38205792,8.219e-05,2]
[333072905,1721831131555,1369.53237316,8.219e-05,2]
[333072906,1721831175033,411.38205792,8.219e-05,2]
[333072907,1721831203017,871.0952208,8.219e-05,2]
[333072908,1721831227887,1369.53237316,8.219e-05,2]
[333072936,1721831276016,411.38205792,8.219e-05,2]
[333072938,1721831308035,731.69114831,8.219e-05,2]
[333072955,1721831390020,411.38205792,8.219e-05,2]
[333072975,1721831432903,-1888.623241,9.303e-05,2]
[333072976,1721831432913,-250.0,9.696e-05,2]
[333072977,1721831432922,-1245.75,9.696e-05,2]
[333072978,1721831432931,-195.9,9.711e-05,2]
[333072979,1721831432941,-1000.0,9.721e-05,2]
[333072980,1721831432950,-200.0,9.722e-05,2]
[333072981,1721831432959,-300.0,9.767e-05,2]
[333072982,1721831432971,-17203.7118,9.768e-05,2]
[333072983,1721831432981,-150.0,9.867e-05,2]
[333072984,1721831432990,-10000.0,9.868e-05,2]
[333072985,1721831432999,-23890.0,9.868e-05,2]
[333072986,1721831433009,-477.9870172,9.962e-05,2]
[333072987,1721831433019,-1371.21105708,9.962e-05,2]
[333072988,1721831433029,-5000.0,0.000101,2]
[333072989,1721831433039,-499.99,0.00010106,2]
[333072990,1721831433048,-171.36,0.00010161,2]
[333072991,1721831433058,-235.83,0.00010471,2]
[333072992,1721831433067,-1000.0,0.0001065,2]
[333072993,1721831433076,-692.8107,0.0001065,2]
[333072994,1721831433085,-606.84842258,0.0001067,2]
[333072995,1721831433095,-606.84842258,0.0001067,2]
[333072996,1721831433105,-150.0,0.00010686,2]
[333072997,1721831433115,-150.0,0.00010692,2]
[333072998,1721831433124,-150.0,0.00010696,2]
[333072999,1721831433133,-150.0,0.000107,2]
[333073000,1721831433143,-1000.0,0.000107,2]
[333073001,1721831433153,-150.0,0.00010705,2]
[333073002,1721831433163,-150.0,0.00010707,2]
[333073003,1721831433172,-150.0,0.0001071,2]
[333073004,1721831433181,-150.0,0.00010711,2]
[333073005,1721831433190,-150.0,0.00010712,2]
[333073006,1721831433199,-150.0,0.00010712,2]
[333073007,1721831433208,-150.0,0.00010713,2]
[333073008,1721831433220,-150.0,0.00010717,2]
[333073009,1721831433232,-150.0,0.00010718,2]
[333073011,1721831433241,-150.0,0.00010719,2]
[333073013,1721831433251,-1500.0,0.00010725,2]
[333073014,1721831433261,-150.0,0.00010727,2]
[333073015,1721831433270,-150.0,0.00010737,2]
[333073016,1721831433279,-151.277,0.0001074,2]
[333073017,1721831433289,-150.0,0.0001074,2]
[333073018,1721831433298,-1500.0,0.0001074,2]
[333073019,1721831433307,-150.0,0.0001074,2]
[333073020,1721831433316,-1500.0,0.00010741,2]
[333073021,1721831433326,-150.0,0.00010743,2]
[333073022,1721831433335,-420.0,0.00010744,2]
[333073023,1721831433345,-1500.0,0.00010745,2]
[333073024,1721831433355,-150.0,0.00010748,2]
[333073025,1721831433365,-150.0,0.00010748,2]
[333073026,1721831433374,-150.0,0.00010749,2]
[333073027,1721831433383,-150.0,0.0001075,2]
[333073028,1721831433393,-245000.0,0.0001075,2]
[333073029,1721831433402,-300.0,0.00010755,2]
[333073030,1721831433412,-1500.0,0.00010756,2]
[333073031,1721831433421,-305.38255821,0.00010758,2]
[333073032,1721831433431,-150.0,0.00010761,2]
[333073033,1721831433441,-150.0,0.00010761,2]
[333073034,1721831433451,-150.0,0.00010765,2]
[333073035,1721831433460,-150.0,0.00010767,2]
[333073036,1721831433472,-150.0,0.00010768,2]
[333073037,1721831433481,-150.0,0.00010769,2]
[333073038,1721831433491,-300.0,0.0001077,2]
[333073039,1721831433501,-150.0,0.00010772,2]
[333073040,1721831433511,-300.0,0.00010775,2]
[333073041,1721831433520,-150.0,0.00010776,2]
[333073042,1721831433530,-150.0,0.00010777,2]
[333073043,1721831433540,-1500.0,0.00010778,2]
[333073044,1721831433549,-150.0,0.00010778,2]
[333073045,1721831433559,-150.0,0.00010779,2]
[333073046,1721831433569,-1525.86975168,0.00010779,2]
[333073047,1721831433579,-150.0,0.0001078,2]
[333073048,1721831433589,-1500.0,0.0001078,2]
[333073049,1721831433598,-1500.0,0.0001078,2]
[333073050,1721831433608,-1500.0,0.00010781,2]
[333073051,1721831433617,-150.0,0.00010782,2]
[333073052,1721831433627,-150.0,0.00010782,2]
[333073053,1721831433637,-150.0,0.00010782,2]
[333073054,1721831433647,-1500.0,0.00010785,2]
[333073055,1721831433661,-150.0,0.00010786,2]
[333073056,1721831433670,-150.0,0.00010786,2]
[333073057,1721831433680,-1500.0,0.00010787,2]
[333073058,1721831433690,-150.0,0.0001079,2]
[333073059,1721831433701,-300.0,0.0001079,2]
[333073060,1721831433711,-150.0,0.0001079,2]
[333073061,1721831433723,-150.0,0.00010793,2]
[333073062,1721831433735,-1500.0,0.00010794,2]
[333073063,1721831433745,-150.0,0.00010795,2]
[333073064,1721831433755,-150.0,0.00010797,2]
[333073065,1721831433765,-1500.0,0.00010798,2]
[333073066,1721831433774,-1192.0,0.000108,2]
[333073067,1721831433784,-1500.0,0.00010801,2]
[333073068,1721831433794,-150.0,0.00010801,2]
[333073069,1721831433803,-1500.0,0.00010803,2]
[333073070,1721831433812,-150.0,0.00010803,2]
[333073071,1721831433822,-150.0,0.00010804,2]
[333073072,1721831433831,-150.0,0.00010812,2]
[333073073,1721831433841,-150.0,0.00010814,2]
[333073074,1721831433850,-150.0,0.00010816,2]
[333073075,1721831433859,-150.0,0.00010816,2]
[333073076,1721831433868,-150.0,0.00010817,2]
[333073077,1721831433877,-150.0,0.00010818,2]
[333073078,1721831433887,-150.0,0.00010821,2]
[333073079,1721831433897,-150.0,0.00010822,2]
[333073080,1721831433906,-150.0,0.00010824,2]
[333073081,1721831433916,-150.0,0.00010826,2]
[333073082,1721831433925,-150.0,0.00010826,2]
[333073083,1721831433935,-150.0,0.00010827,2]
[333073084,1721831433944,-150.0,0.00010828,2]
[333073085,1721831433955,-300.0,0.00010829,2]
[333073086,1721831433966,-150.0,0.00010829,2]
[333073087,1721831433979,-150.0,0.00010831,2]
[333073088,1721831433988,-150.0,0.00010832,2]
[333073089,1721831433997,-150.0,0.00010834,2]
[333073090,1721831434007,-1500.0,0.00010835,2]
[333073091,1721831434016,-150.0,0.00010835,2]
[333073092,1721831434026,-150.0,0.00010836,2]
[333073093,1721831434035,-150.0,0.00010839,2]
[333073094,1721831434045,-150.0,0.0001084,2]
[333073095,1721831434055,-150.0,0.00010841,2]
[333073096,1721831434064,-150.0,0.00010842,2]
[333073097,1721831434074,-150.0,0.00010844,2]
[333073098,1721831434083,-150.0,0.00010851,2]
[333073099,1721831434093,-150.0,0.00010851,2]
[333073100,1721831434102,-255.0,0.00010854,2]
[333073101,1721831434112,-150.0,0.00010855,2]
[333073102,1721831434123,-150.0,0.00010858,2]
[333073103,1721831434133,-150.0,0.00010859,2]
[333073104,1721831434143,-150.0,0.0001086,2]
[333073105,1721831434154,-1500.0,0.00010861,2]
[333073106,1721831434164,-150.0,0.00010862,2]
[333073107,1721831434174,-1500.0,0.00010863,2]
[333073108,1721831434183,-150.0,0.00010865,2]
[333073109,1721831434193,-150.0,0.00010869,2]
[333073110,1721831434203,-150.0,0.00010872,2]
[333073111,1721831434213,-1500.0,0.00010875,2]
[333073112,1721831434224,-1500.0,0.00010876,2]
[333073113,1721831434234,-150.0,0.00010878,2]
[333073114,1721831434243,-300.0,0.00010879,2]
[333073115,1721831434253,-150.0,0.00010879,2]
[333073116,1721831434263,-150.0,0.00010879,2]
[333073117,1721831434274,-1500.0,0.00010883,2]
[333073118,1721831434285,-150.0,0.00010885,2]
[333073119,1721831434295,-150.0,0.00010885,2]
[333073120,1721831434306,-150.0,0.00010886,2]
[333073121,1721831434316,-150.0,0.00010888,2]
[333073122,1721831434326,-150.0,0.00010889,2]
[333073123,1721831434337,-783.78952564,0.0001089,2]
[333073124,1721831434347,-150.0,0.00010891,2]
[333073125,1721831434358,-150.0,0.00010894,2]
[333073126,1721831434368,-1500.0,0.00010895,2]
[333073127,1721831434378,-150.0,0.00010897,2]
[333073128,1721831434388,-150.0,0.00010899,2]
[333073129,1721831434398,-2159.0729,0.000109,2]
[333073130,1721831434409,-1772.4321,0.000109,2]
[333073131,1721831434419,-780.2523,0.000109,2]
[333073132,1721831434429,-167.66739738,0.000109,2]
[333073133,1721831434439,-175.32345233,0.000109,2]
[333073134,1721831434450,-614.51359985,0.000109,2]
[333073135,1721831434460,-170.46047083,0.000109,2]
[333073136,1721831434472,-150.0,0.0001091,2]
[333073137,1721831434482,-150.0,0.0001091,2]
[333073138,1721831434493,-300.0,0.0001091,2]
[333073139,1721831434504,-150.0,0.0001091,2]
[333073140,1721831434514,-150.0,0.0001091,2]
[333073141,1721831434525,-1500.0,0.00010912,2]
[333073142,1721831434535,-1500.0,0.00010913,2]
[333073143,1721831434545,-516.98447335,0.00010916,2]
[333073144,1721831434556,-150.0,0.00010917,2]
[333073145,1721831434567,-150.0,0.00010927,2]
[333073146,1721831434577,-150.0,0.00010929,2]
[333073147,1721831434587,-1500.0,0.0001093,2]
[333073148,1721831434597,-150.0,0.00010933,2]
[333073149,1721831434607,-81.56134808,0.00010936,2]
[333073150,1721831434622,-918.43865192,0.00010936,2]
[333073151,1721831434632,-150.0,0.00010936,2]
[333073152,1721831434643,-150.0,0.00010936,2]
[333073153,1721831434656,-150.0,0.00010937,2]
[333073154,1721831434667,-150.0,0.00010938,2]
[333073155,1721831434677,-283.77192452,0.00010941,2]
[333073156,1721831434688,-150.0,0.00010943,2]
[333073157,1721831434699,-1500.0,0.00010944,2]
[333073158,1721831434709,-150.0,0.00010947,2]
[333073159,1721831434720,-16600.35631356,0.0001095,2]
[333073160,1721831434744,-67008.0,0.0001095,2]
[333073165,1721831438419,-2690.636,9.942e-05,2]
[333073166,1721831438433,-6070.834,9.942e-05,2]